Cogmind - Beta 17.1 @@@ ROGUE MODE // 2026.09.07 @ 21:07:49 Player: 4R-ZE3 Result: Destroyed by Shrapnel Trap Performance ------------- Evolutions (0) 0 Regions Visited (2) 400 Robots Destroyed (24) 120 Value Destroyed (719) 719 Prototype IDs (0) 0 Alien Tech Used (0) 0 Bonus (0) 0 TOTAL SCORE: 1239 Bonus ------- None Cogmind --------- Core Integrity 0/250 Matter 273/300 Energy 151/200 System Corruption 0% Temperature Cool (2) Movement Treading (160) Location -10/Subcaves Parts ------- > --- POWER (1) -------- Subdweller Power Source > --- PROPULSION (2) --- Light Treads Light Treads > --- UTILITY (2) ------ Large Storage Unit Structural Scanner > --- WEAPON (2) ------- Subdweller Machine Gun Subdweller Machine Gun > --- INVENTORY (15) --- Light Ion Engine Light Ion Engine Wheel Wheel Heat Sink Improved Heat Sink Particle Gun Subdweller Laser Beam Cannon Beam Cannon Light Assault Rifle Subdweller Machine Gun Subdweller Machine Gun Makeshift Spear Peak State ------------ > --- POWER ------------ Light Ion Engine > --- PROPULSION ------- Light Treads Light Treads > --- UTILITY ---------- Large Storage Unit Structural Scanner > --- WEAPON ----------- Subdweller Laser Makeshift Spear > --- INVENTORY -------- Light Ion Engine Subdweller Power Source Light Treads Wheel Wheel Heat Sink Improved Heat Sink Particle Gun Beam Cannon Beam Cannon Light Assault Rifle Subdweller Machine Gun Subdweller Machine Gun Subdweller Machine Gun Subdweller Machine Gun [Rating: 13] Favorites ----------- Power Light Ion Engine Engine Light Ion Engine Propulsion Light Treads Treads Light Treads Utility Large Storage Unit Device Structural Scanner Storage Large Storage Unit Protection Power Shielding Weapon Beam Cannon Energy Gun Small Laser Energy Cannon Beam Cannon Ballistic Gun Subdweller Machine Gun Piercing Weapon Makeshift Spear Build | -11 -10 -10 ------- Run | Yrd Mat Sub Slots Evolved . | . . . Power . | . . . Propulsion . | . . . Utility . | . . . Weapon . | . . . Parts Attached 23 | 6 8 9 Power 2 | 1 . 1 Engine 2 | 1 . 1 Core . | . . . Reactor . | . . . Propulsion 5 | 2 1 2 Treads 5 | 2 1 2 Leg . | . . . Wheel . | . . . Hover . | . . . Flight . | . . . Utility 7 | 1 5 1 Device 3 | . 2 1 Storage 3 | 1 2 . Processor . | . . . Hackware . | . . . Protection 1 | . 1 . Artifact . | . . . Weapon 9 | 2 2 5 Energy Gun 3 | 2 . 1 Energy Cannon 3 | . 2 1 Ballistic Gun 2 | . . 2 Ballistic Cannon . | . . . Launcher . | . . . Special Weapon . | . . . Impact Weapon . | . . . Slashing Weapon . | . . . Piercing Weapon 1 | . . 1 Special Melee Weapon . | . . . Unidentified Prototypes . | . . . Parts Lost 3 | . 1 2 Power . | . . . Propulsion 3 | . 1 2 Utility . | . . . Weapon . | . . . Highest Loss Streak 1 | . 1 1 To Critical Strikes . | . . . Average Backups 11 | 2 8 14 Power 1 | . 1 1 Propulsion 3 | 1 3 3 Utility 1 | . . 2 Weapon 4 | . 3 6 Tool/Special . | . . . Unused Backups 11 | . 3 8 Power 1 | . . 1 Propulsion 4 | . 2 2 Utility . | . . . Weapon 6 | . 1 5 Tool/Special . | . . . Average Slot Usage (%) 98 | . 96 99 Engine 14 | . 14 14 Treads 27 | . 27 27 Device 12 | . 10 14 Storage 14 | . 14 14 Energy Gun 7 | . 7 6 Energy Cannon 18 | . 20 17 Ballistic Gun 1 | . . 3 Peak Build Rating 13 | 6 10 13 Average Rating 8 | 4 7 10 On Entrance 5 | . 6 10 Avg Prop Armor Cover (%) . | . . . Naked Turns . | . . . Heaviest Build 35 | 10 30 35 Greatest Support 40 | 40 40 40 Greatest Overweight (x) 3 | 3 . 1 Average Overweight (x) . | . . . Largest Inventory Capacity 15 | 8 15 15 Average Capacity 12 | 7 10 15 Most Carried 15 | 4 11 15 Average Carried 11 | 3 8 14 Final Capacity 15 | 8 15 15 Final Carried 14 | 4 11 14 Class Distribution -------------------- 96% | Mutant 3% | Scavenger-Mutant Dominant Class ---------------- Mutant | -10/Materials Mutant | -10/Subcaves Resources | -11 -10 -10 ----------- Run | Yrd Mat Sub Matter Collected 465 | 213 127 125 Remotely . | . . . Salvage Created 1197 | . 677 520 Parts 66 | . 37 29 Haulers Intercepted 1 | . 1 . Recyclers Shooed . | . . . Parts Field Recycled . | . . . Retrieved Matter . | . . . Parts Self-Destructed . | . . . Prevented . | . . . Parts Restored . | . . . Kills | -11 -10 -10 ------- Run | Yrd Mat Sub Combat Hostiles Destroyed 21 | . 14 7 Guns 6 | . 5 1 Cannons 15 | . 9 6 Classes Destroyed 8 | . 5 3 Worker 1 | . 1 . Hauler 1 | . 1 . Recycler 1 | . 1 . Swarmer 3 | . 3 . Grunt 11 | . 11 . Artisan 2 | . . 2 Cobbler 1 | . . 1 Subdweller 7 | . . 7 Best Kill Streak 3 | . 3 2 Combat Bots Only 3 | . 3 2 Max Kills in Single Turn 1 | . 1 1 Gunslinging . | . . . Exploded . | . . . Melee . | . . . Uniques/NPCs Destroyed . | . . . Combat | -11 -10 -10 -------- Run | Yrd Mat Sub Hostile Shots Fired 100 | . 71 29 Missed 26 | . 20 6 Hits 74 | . 51 23 Projectile 74 | . 51 23 Damage Taken 1147 | . 589 558 Core 303 | . 103 200 Absorbed by Shields . | . . . Redirected to Shielding 3 | . 3 . Core Remaining (%) 100 | 100 . . Volleys Fired 99 | . 47 52 Largest 2 | . 2 2 Hottest 140 | . 120 140 Shots Fired 180 | . 94 86 Gun 70 | . 40 30 Cannon 110 | . 54 56 Launcher . | . . . Special . | . . . Kinetic 11 | . . 11 Thermal 169 | . 94 75 Explosive . | . . . Electromagnetic . | . . . Robot Hit Streak 18 | . 4 18 Robot Miss Streak 4 | . 4 2 Penetration Max . | . . . Secondary Targets . | . . . Shots Hit Robots 104 | . 44 60 Core Hits 47 | . 25 22 Critical Kills . | . . . Critical Parts Destroyed . | . . . Critical Strikes . | . . . Melee Attacks 7 | . . 7 Impact . | . . . Slashing . | . . . Piercing 7 | . . 7 Sneak Attacks 1 | . . 1 Combat Hostiles . | . . . Follow-up Attacks . | . . . Damage Inflicted 1892 | . 677 1215 Guns 579 | . 229 350 Cannons 1271 | . 448 823 Explosions . | . . . Melee 42 | . . 42 Ramming . | . . . Kinetic 207 | . . 207 Thermal 1643 | . 677 966 Explosive . | . . . Electromagnetic . | . . . Impact . | . . . Slashing . | . . . Piercing 42 | . . 42 Highest Corruption . | . . . Average Corruption . | . . . Corruption Purged . | . . . Corruption Blocked . | . . . Overload Shots . | . . . Overflow Damage 12 | . . 12 Projectiles . | . . . Explosions . | . . . Melee 12 | . . 12 Knockbacks . | . . . Impact . | . . . Kinetic . | . . . Secondary . | . . . Self-Inflicted Damage . | . . . Shots . | . . . Rammed . | . . . Targets Rammed . | . . . Kicked . | . . . Crushed . | . . . Highest Temperature 276 | . 276 90 Average Temperature 85 | . 96 34 Received Heat Transfer 285 | . 249 36 Effects 1 | . 1 . Energy Bleed 1 | . 1 . Siege Activations . | . . . Martial Activations . | . . . Shielding Activations . | . . . Robots Disrupted . | . . . Combat Hostiles . | . . . Robots Corrupted . | . . . Combat Hostiles . | . . . Parts Fried . | . . . Impact Corruptions . | . . . Robots Melted . | . . . Combat Hostiles . | . . . Parts Melted 3 | . . 3 Heat Transferred 3142 | . 1450 1692 Parts Sabotaged . | . . . Parts Stolen . | . . . Parts Stripped . | . . . Power Chain Reactions . | . . . Alert | -11 -10 -10 ------- Run | Yrd Mat Sub Maximum Alert Level . | . . . Low Security (%) 100 | 100 100 . Level 1 . | . . . Level 2 . | . . . Level 3 . | . . . Level 4 . | . . . Level 5 . | . . . High Security . | . . . Max Security . | . . . Peak Influence 82 | . 82 . Initial . | . . . Average 32 | . 33 . Influence Increases 404 | . 404 . Destroy 0b10 Robot/C 280 | . 280 . Destroy 0b10 Robot/NC 15 | . 15 . Destroy Leader 62 | . 62 . Successful Hack 14 | . 14 . Select Force Hacks 30 | . 30 . Destroy Structure 3 | . 3 . Influence Decreases 404 | . 404 . Time Decay 394 | . 394 . Lost Part 10 | . 10 . Squads Dispatched 3 | . 3 . Investigation 2 | . 2 . Extermination . | . . . Reinforcement 1 | . 1 . Assault . | . . . Garrison . | . . . Intercept . | . . . Searches Triggered . | . . . Construction Impeded . | . . . Haulers Reinforced . | . . . Active Scanning Responses . | . . . Cargo Convoy Interrupts . | . . . Stealth | -11 -10 -10 --------- Run | Yrd Mat Sub Distress Signals 1 | . 1 . Communications Jammed . | . . . Distress Signals . | . . . Times Spotted 28 | . 20 8 Peak Tracking Total 4 | . 4 2 Tactical Retreats . | . . . Traps | -11 -10 -10 ------- Run | Yrd Mat Sub Traps Triggered 4 | . 2 2 Indirectly . | . . . Trap Hack Attempts . | . . . Triggered . | . . . Disarmed . | . . . Reprogrammed . | . . . Reused . | . . . Traps Extracted . | . . . Installed . | . . . Triggered . | . . . Machines | -11 -10 -10 ---------- Run | Yrd Mat Sub Machines Disabled . | . . . Max in Single Turn . | . . . Machines Repaired . | . . . Machines Dismantled . | . . . Machines Sabotaged . | . . . Overloaded Fab Kills . | . . . Hacking | -11 -10 -10 --------- Run | Yrd Mat Sub Machines Accessed 7 | . 6 1 Terminals 5 | . 5 . Fabricators . | . . . Repair Stations . | . . . Recycling Units 1 | . 1 . Scanalyzers . | . . . Garrison Access . | . . . Total Hacks 18 | . 15 3 Successful 9 | . 6 3 Failed 9 | . 9 . Catastrophic . | . . . Database Lockouts . | . . . Manual 13 | . 13 . Terminals 14 | . 14 . Fabricators . | . . . Repair Stations . | . . . Recycling Units 1 | . 1 . Scanalyzers . | . . . Garrison Access . | . . . Terminal Hacks 6 | . 3 3 Record 3 | . . 3 Robot Analysis 2 | . 2 . Zone Layout 1 | . 1 . Fabricator Hacks . | . . . Repair Station Hacks . | . . . Recycling Unit Hacks . | . . . Scanalyzer . | . . . Garrison Access Hacks . | . . . Unauthorized Hacks 3 | . 3 . Terminals 2 | . 2 . Botnet 2 | . 2 . Fabricators . | . . . Repair Stations . | . . . Recycling Units 1 | . 1 . Tunnel 1 | . 1 . Scanalyzers . | . . . Garrison Access . | . . . Data Cores Recovered . | . . . Used . | . . . Hacking Detections 5 | . 5 . Full Trace Events 2 | . 2 . Feedback Events . | . . . Feedback Blocked . | . . . Robot Schematics Acquired . | . . . Robots Built . | . . . Authchips . | . . . Time . | . . . Total Robot Build Rating . | . . . Part Schematics Acquired . | . . . Parts Built . | . . . Authchips . | . . . Time . | . . . Total Part Build Rating . | . . . Part Studies Acquired . | . . . Parts Repaired . | . . . Time . | . . . Parts Recycled . | . . . Recycled Matter . | . . . Retrieved Matter . | . . . Retrieved Components . | . . . Parts Scanalyzed . | . . . Part Schematics Acquired . | . . . Parts Damaged . | . . . Bothacking | -11 -10 -10 ------------ Run | Yrd Mat Sub Used RIF Installer . | . . . Robots Hacked . | . . . Non-combat . | . . . Combat . | . . . Robot Hacks Applied . | . . . Relay Couplers Released . | . . . Fabnet Peak Effective % . | . . . Robots Rewired . | . . . Allies Hacked . | . . . Hacks Repelled . | . . . Allies | -11 -10 -10 -------- Run | Yrd Mat Sub Total Allies . | . . . Largest Group . | . . . Highest-Rated Group . | . . . Highest-Rated Ally . | . . . Total Orders . | . . . Ally Attacks . | . . . Total Damage . | . . . Kills . | . . . Allies Corrupted . | . . . Allies Melted . | . . . Intel | -11 -10 -10 ------- Run | Yrd Mat Sub Active Infowar (turns) 939 | . . 939 Structural 939 | . . 939 Robot Analysis Total 2 | . 2 . Derelict Logs Recovered . | . . . Drone Launches . | . . . Drone Recoveries . | . . . Exploration | -11 -10 -10 ------------- Run | Yrd Mat Sub Turns Passed 2491 | 73 1227 1191 Spaces Moved 1163 | 44 516 603 Core 12 | 12 . . Treads 1151 | 32 516 603 Legs . | . . . Wheels . | . . . Hover . | . . . Flight . | . . . Fastest Speed 50 | 50 160 160 Average Speed 160 | 135 160 162 Slowest Speed 240 | 200 160 240 Overloaded Moves . | . . . Propulsion Burnouts . | . . . Robots Hopped . | . . . Potential Cave-ins . | . . . Cave-ins Triggered . | . . . Exploration Rate (%) 45 | 3 88 44 Regions Visited 2 Branch Regions 1 Pre-discovered Areas 1 | . 1 . Known Exits Taken . | . . . Unknown Exits Taken 2 | 1 1 . Scrap Searched 3 | . . 3 Spaces Dug 1 | . . 1 Terrain Destroyed 2 | . . 2 Melee . | . . . Projectile 2 | . . 2 AOE . | . . . Terrain Rammed . | . . . Walls Destroyed . | . . . Machines Disabled . | . . . Actions | -11 -10 -10 --------- Run | Yrd Mat Sub Total 1598 | 55 825 718 Wait 264 | . 237 27 Move 1161 | 43 515 603 Hop . | . . . Pick Up 26 | 6 11 9 Fast Attach 6 | 4 2 . Attach 6 | 2 1 3 Detach . | . . . Swap 16 | . 5 11 Drop 11 | . 7 4 Fire 99 | . 47 52 Melee 7 | . . 7 Ram . | . . . Kick . | . . . Crush . | . . . Escape Stasis . | . . . Rewire 2 | . . 2 Trap . | . . . Miscellaneous . | . . . Route ------- -11/Scrapyard -10/Materials (discovered 6 exits: [*Mat x3] / [*Min x2] / *Sub) -10/Subcaves (discovered 1 exit: Rec) History --------- Turn | Location | Event 10 | -11/Scrapyard | Discovered new exit (range 15) 74 | -11/Scrapyard | Entered Materials 74 | -10/Materials | Discovered new exit (range 8) 233 | -10/Materials | Discovered new exit (range 11) 321 | -10/Materials | Build established: Mutant 401 | -10/Materials | Discovered new exit (range 11) 810 | -10/Materials | Discovered new exit (range 5) 1053 | -10/Materials | Discovered new exit (range 14) 1297 | -10/Materials | Discovered new exit (range 3) 1301 | -10/Materials | Entered Subcaves 1302 | -10/Subcaves | Approached by a straggling Scientist 1506 | -10/Subcaves | A swath of the cavern ceiling suddenly collapsed 1758 | -10/Subcaves | Visited Clippyterm 1763 | -10/Subcaves | Identified exit to Recycling 1810 | -10/Subcaves | Core integrity fell below 50% 2399 | -10/Subcaves | Ambushed by angry Subdweller bent on revenge 2417 | -10/Subcaves | Core integrity fell below 20% 2492 | -10/Subcaves | Destroyed by Shrapnel Trap Last Messages --------------- 02321_ Acquired Mak. Spear. 02392_ Sneak attack on SH-A2H(u). 02392_ Destroyed Multitool. 02392_ SH-A2H(u) cries out in pain. 02392_ SH-A2H(u) destroyed. 02394_ Acquired 10 matter. 02399_ 9F-ZWM(R) angrily emerges from the Twisted Machinery. 02399_ 9F-ZWM(R): "MADSUB!" 02411_ Sub. Laser shoots sparks and powers down. 02414_ Lgt. Treads destroyed. 02424_ 9F-ZWM(R) destroyed. 02427_ Acquired 30 matter. 02488_ Triggered Piercing Trap. 02488_ Spikes shoot up from the floor. 02488_ Critical hit (Impale). 02490_ D6-OFN(R): "SUB#$%&!" 02492_ Triggered Shrapnel Trap. 02492_ An expanding cloud of shrapnel blasts out in all directions. Map ----- +----------------------------------------------------+ | ??????????????????????????????????#### ### ##? | | ??????????????????????????????????##" ##? | | ??????????????????????????????????##" ##? | | ???????????????????????????#########"" ###? | | ???????????????????????????#########"" ###?? | | ?????????????????######???### "####"" ###?? | | ????????????????########?#### "##" " ##?? | | ?????????????###### ####### ""###"" ##?# | | ?????????????##### ##### """#### ###?# | | ?????????????## ### &""" ### ##### | | ?????????????## ### " " " #### | | ?????????????## ## """&% " "" | | ?????????????## ## "" ""=###" ## | | ?????????????## ### "" ########## ## | | ?????????????## ### """ ########### ### | | ?????????????### ## """ ############ ### | | ?????????????##### " ############ ###? | | ??????????????##### ########## #### | | ????????????????#### ####### ##?# | | ?????????????????#### ###?## ##?# | | ?????????????????##### ###?## #### | | ?????????????????##### ###?## ## #### | | ?????????????????## ^ ##?## #### ### | | ?????????????????## ##?######### # ### | | ?????????????????### ^ ##?############ | | ?????????????????####@ ^###???### ["## | | ??????????????????#### ###???##"&# #" | | ???????????????????### ????##%%# | | ???????????????????## ?? # "# #" | | ???????????????????### #%#### | | ???????????????????## ## ##### | | ????????????????????## #### # # | | ????????????????????# ####?? | | ????????????????????? #????? # | | ????????????????????? #????? # # # | | ???????????????????? ##???? #### | | ???????????????????? ##??? ? ###### | | ???????????????????? ##??? ???? ######## | | ???????????????????? ##??????? ###???## | | ????????????????????? #???????? ???????? | | ????????????????????? ##???????? ???????? | | ??????????????????????###????????? ???????? | | ???????????????????????????????????? ???????? | | ?????????????????????????????????????????????? | | ?????????????????????????????????????????????? | | ?????????????????????????????????????????????? | | ?????????????????????????????????????????????? | | ?????????????????????????????????????????????? | | ?????????????????????????????????????????????? | | ?????????????????????????????????????????????? | +----------------------------------------------------+ Best States ------------- Heat Dissipation 39 Energy Generation 15 Energy Capacity 200 Matter Stores 300 Matter Capacity 300 Sight Range 16 Terrain Scan Density 10 Power Shielding 33 Evasion (%) 50 Recoil Reduction 2 Item Schematics ----------------- None Robot Schematics ------------------ None Fabricated ------------ Nothing Repaired ---------- Nothing Studied --------- None Alien Tech Used ----------------- None Achievements -------------- None Challenges ------------ None Game ------ Seed InsulatedMicrowarpDeflector Manual? 0 Play Time 00:15:18 Cumulative 349.2 hours Start 2026.09.07 @ 20:57:28 End 2026.09.07 @ 21:07:49 Sessions 1 Manual Loads 0 Difficulty Rogue Special Mode None Game No. 329 Rogue 275 Adventurer 54 Explorer 0 Win Type - Total 18 Types 12/1/1/1/1/0/0/1/0/1 Lore% 81 Gallery% 69 Achievement% 65 Wizard Run 0 Options --------- Layout 1 ASCII 0 Keyboard 0 Movement Mouse Keybinds 1 Fullscreen 2 Font 32/Tamsyn Map View 50x35 Zoom Use 0% Tactical HUD 1 Map Filters NONE Filters NONE Steam 1 RUN: 314f2ad6-5e17-42fc-81fc-97b68d8c9cef